fUSD/lending_fUSD_20241111
["ID","MTS","AMOUNT","RATE_DAILY","PERIOD"]
[342014652,1731363077954,-1187.21652196,0.00014999,2]
[342014653,1731363077965,-2541.64,0.00014999,2]
[342014654,1731363077975,-2541.64,0.00014999,2]
[342014655,1731363077984,-500.0,0.00014999,2]
[342014656,1731363077993,-2541.64,0.00014999,2]
[342014657,1731363078003,-500.0,0.00014999,2]
[342014658,1731363078012,-2541.64,0.00014999,2]
[342014659,1731363078023,-253.95361469,0.00014999,2]
[342014660,1731363078045,-2541.64,0.00014999,2]
[342014661,1731363078060,-2541.64,0.00014999,2]
[342014662,1731363078070,-2541.64,0.00014999,2]
[342014663,1731363078080,-500.0,0.00014999,2]
[342014664,1731363078089,-2541.64,0.00014999,2]
[342014665,1731363078100,-500.0,0.00014999,2]
[342014666,1731363078109,-2541.64,0.00014999,2]
[342014667,1731363078119,-500.0,0.00014999,2]
[342014668,1731363078129,-2541.64,0.00014999,2]
[342014669,1731363078138,-500.0,0.00014999,2]
[342014670,1731363078147,-2541.64,0.00014999,2]
[342014671,1731363078157,-610.27,0.00014999,2]
[342014672,1731363078166,-2541.74,0.00014999,2]
[342014673,1731363078176,-610.27,0.00014999,2]
[342014674,1731363078186,-610.27,0.00014999,2]
[342014675,1731363078195,-610.27,0.00014999,2]
[342014676,1731363078205,-610.27,0.00014999,2]
[342014677,1731363078217,-610.27,0.00014999,2]
[342014678,1731363078227,-1093.41,0.00014999,2]
[342014679,1731363078237,-610.27,0.00014999,2]
[342014680,1731363078247,-1093.41,0.00014999,2]
[342014681,1731363078257,-610.27,0.00014999,2]
[342014682,1731363078267,-610.27,0.00014999,2]
[342014683,1731363078276,-1093.41,0.00014999,2]
[342014684,1731363078286,-1093.41,0.00014999,2]
[342014685,1731363078295,-610.27,0.00014999,2]
[342014686,1731363078305,-1093.41,0.00014999,2]
[342014687,1731363078314,-610.27,0.00014999,2]
[342014688,1731363078324,-1093.41,0.00014999,2]
[342014689,1731363078333,-500.0,0.00014999,2]
[342014690,1731363078343,-1093.41,0.00014999,2]
[342014691,1731363078353,-500.0,0.00014999,2]
[342014692,1731363078362,-1093.56,0.00014999,2]
[342014693,1731363078372,-500.0,0.00014999,2]
[342014694,1731363078381,-610.27,0.00014999,2]
[342014695,1731363078391,-500.0,0.00014999,2]
[342014696,1731363078400,-823.16,0.00014999,2]
[342014697,1731363078411,-500.0,0.00014999,2]
[342014698,1731363078421,-610.27,0.00014999,2]
[342014699,1731363078430,-823.16,0.00014999,2]
[342014700,1731363078439,-500.0,0.00014999,2]
[342014701,1731363078448,-610.27,0.00014999,2]
[342014702,1731363078459,-823.16,0.00014999,2]
[342014703,1731363078468,-500.0,0.00014999,2]
[342014704,1731363078478,-610.27,0.00014999,2]
[342014705,1731363078488,-823.16,0.00014999,2]
[342014706,1731363078499,-500.0,0.00014999,2]
[342014707,1731363078508,-500.0,0.00014999,2]
[342014708,1731363078518,-500.0,0.00014999,2]
[342014709,1731363078528,-823.16,0.00014999,2]
[342014710,1731363078537,-610.27,0.00014999,2]
[342014711,1731363078547,-500.0,0.00014999,2]
[342014712,1731363078556,-823.16,0.00014999,2]
[342014713,1731363078566,-500.0,0.00014999,2]
[342014714,1731363078576,-610.27,0.00014999,2]
[342014715,1731363078585,-823.16,0.00014999,2]
[342014716,1731363078596,-500.0,0.00014999,2]
[342014717,1731363078606,-823.37861078,0.00014999,2]
[342014718,1731363078615,-500.0,0.00014999,2]
[342014719,1731363078625,-610.27,0.00014999,2]
[342014720,1731363078634,-500.0,0.00014999,2]
[342014721,1731363078643,-500.0,0.00014999,2]
[342014722,1731363078653,-610.27,0.00014999,2]
[342014723,1731363078663,-500.0,0.00014999,2]
[342014724,1731363078672,-610.27,0.00014999,2]
[342014725,1731363078682,-337.40012712,0.00014999,2]
[342014726,1731363078691,-500.0,0.00014999,2]
[342014727,1731363078700,-610.27,0.00014999,2]
[342014728,1731363078710,-500.0,0.00014999,2]
[342014729,1731363078719,-610.47819141,0.00014999,2]
[342014730,1731363078729,-500.0,0.00014999,2]
[342014731,1731363078738,-500.0,0.00014999,2]
[342014732,1731363078748,-500.0,0.00014999,2]
[342014733,1731363078758,-500.0,0.00014999,2]
[342014734,1731363078768,-500.0,0.00014999,2]
[342014735,1731363078779,-1453.99,0.00014999,2]
[342014736,1731363078789,-422.66849556,0.00014999,2]
[342014737,1731363078799,-1453.99,0.00014999,2]
[342014738,1731363078810,-1453.99,0.00014999,2]
[342014739,1731363078820,-517.65473149,0.00014999,2]
[342014740,1731363078830,-1453.99,0.00014999,2]
[342014741,1731363078840,-1453.99,0.00014999,2]
[342014742,1731363078849,-1453.99,0.00014999,2]
[342014743,1731363078860,-1453.99,0.00014999,2]
[342014744,1731363078870,-1453.99,0.00014999,2]
[342014745,1731363078880,-1453.99,0.00014999,2]
[342014746,1731363078889,-10142.79,0.00014999,2]
[342014747,1731363078899,-1639.56,0.00014999,2]
[342014748,1731363078909,-1453.99,0.00014999,2]
[342014749,1731363078918,-1639.56,0.00014999,2]
[342014750,1731363078928,-10142.79,0.00014999,2]
[342014751,1731363078937,-1453.99,0.00014999,2]
[342014752,1731363078947,-1639.56,0.00014999,2]
[342014753,1731363078956,-10142.79,0.00014999,2]
[342014754,1731363078969,-1453.99,0.00014999,2]
[342014755,1731363078979,-1639.56,0.00014999,2]
[342014756,1731363078989,-10142.79,0.00014999,2]
[342014757,1731363078999,-1639.56,0.00014999,2]
[342014758,1731363079010,-10142.79,0.00014999,2]
[342014759,1731363079020,-1453.99,0.00014999,2]
[342014760,1731363079030,-10142.79,0.00014999,2]
[342014761,1731363079040,-1639.56,0.00014999,2]
[342014762,1731363079050,-1453.99,0.00014999,2]
[342014763,1731363079059,-10142.79,0.00014999,2]
[342014764,1731363079069,-1639.56,0.00014999,2]
[342014765,1731363079079,-1453.99,0.00014999,2]
[342014766,1731363079088,-10142.79,0.00014999,2]
[342014767,1731363079098,-1639.56,0.00014999,2]
[342014768,1731363079108,-1453.99,0.00014999,2]
[342014769,1731363079118,-1639.56,0.00014999,2]
[342014770,1731363079128,-10142.79,0.00014999,2]
[342014771,1731363079138,-1453.99,0.00014999,2]
[342014772,1731363079147,-1639.56,0.00014999,2]
[342014773,1731363079157,-10142.79,0.00014999,2]
[342014774,1731363079167,-1639.56,0.00014999,2]
[342014775,1731363079177,-1453.99,0.00014999,2]
[342014776,1731363079187,-1639.56,0.00014999,2]
[342014777,1731363079196,-10142.79,0.00014999,2]
[342014778,1731363079205,-1453.99,0.00014999,2]
[342014779,1731363079217,-296.39129658,0.00014999,2]
[342014780,1731363079227,-1639.56,0.00014999,2]
[342014781,1731363079237,-10142.79,0.00014999,2]
[342014782,1731363079246,-1453.99,0.00014999,2]
[342014783,1731363079256,-1639.56,0.00014999,2]
[342014784,1731363079265,-10142.79,0.00014999,2]
[342014785,1731363079275,-1454.06424875,0.00014999,2]
[342014786,1731363079285,-1639.56,0.00014999,2]
[342014787,1731363079295,-10142.79,0.00014999,2]
[342014788,1731363079304,-1639.56,0.00014999,2]
[342014789,1731363079313,-10142.79,0.00014999,2]
[342014790,1731363079323,-500.0,0.00014999,2]
[342014791,1731363079332,-1639.56,0.00014999,2]
[342014792,1731363079341,-10142.79,0.00014999,2]
[342014793,1731363079351,-500.0,0.00014999,2]
[342014794,1731363079360,-1639.56,0.00014999,2]
[342014795,1731363079369,-10142.79,0.00014999,2]
[342014796,1731363079379,-498.63451035,0.00014999,2]
[342014797,1731363079388,-10142.79,0.00014999,2]
[342014798,1731363079397,-1639.56,0.00014999,2]
[342014799,1731363079407,-10142.79,0.00014999,2]
[342014800,1731363079417,-10142.79,0.00014999,2]
[342014801,1731363079428,-1639.56,0.00014999,2]
[342014802,1731363079437,-500.0,0.00014999,2]
[342014803,1731363079446,-1639.56,0.00014999,2]
[342014804,1731363079454,-10142.79,0.00014999,2]
[342014805,1731363079466,-202.54,0.00014999,2]
[342014806,1731363079476,-1639.70071282,0.00014999,2]
[342014807,1731363079486,-10142.92358008,0.00014999,2]
[342014808,1731363079496,-9481.86,0.00014999,2]
[342014809,1731363079505,-9481.86,0.00014999,2]
[342014810,1731363079515,-9481.86,0.00014999,2]
[342014811,1731363079523,-9481.86,0.00014999,2]
[342014812,1731363079533,-9481.86,0.00014999,2]
[342014813,1731363079542,-9481.86,0.00014999,2]
[342014814,1731363079552,-9481.86,0.00014999,2]
[342014815,1731363079561,-1955.15,0.00014999,2]
[342014816,1731363079571,-1955.15,0.00014999,2]
[342014817,1731363079580,-500.0,0.00014999,2]
[342014818,1731363079590,-1955.15,0.00014999,2]
[342014819,1731363079600,-1955.15,0.00014999,2]
[342014820,1731363079609,-1955.15,0.00014999,2]
[342014821,1731363079618,-500.0,0.00014999,2]
[342014822,1731363079627,-1955.15,0.00014999,2]
[342014823,1731363079636,-500.0,0.00014999,2]
[342014824,1731363079646,-1955.15,0.00014999,2]
[342014825,1731363079655,-500.0,0.00014999,2]
[342014826,1731363079664,-500.0,0.00014999,2]
[342014827,1731363079674,-1955.15,0.00014999,2]
[342014828,1731363079683,-500.0,0.00014999,2]
[342014829,1731363079692,-1955.15,0.00014999,2]
[342014830,1731363079702,-9481.86,0.00014999,2]
[342014831,1731363079712,-1955.15,0.00014999,2]
[342014832,1731363079722,-9481.86,0.00014999,2]
[342014833,1731363079732,-476.05179793,0.00014999,2]
[342014834,1731363079741,-1955.15,0.00014999,2]
[342014835,1731363079750,-9481.86,0.00014999,2]
[342014836,1731363079759,-1955.15,0.00014999,2]
[342014837,1731363079769,-9481.86,0.00014999,2]
[342014838,1731363079778,-1955.15,0.00014999,2]
[342014839,1731363079787,-1955.15,0.00014999,2]
[342014840,1731363079796,-9481.86,0.00014999,2]
[342014841,1731363079806,-1955.15,0.00014999,2]
[342014842,1731363079816,-9481.86,0.00014999,2]
[342014843,1731363079826,-1955.15,0.00014999,2]
[342014844,1731363079835,-9481.86,0.00014999,2]
[342014845,1731363079845,-1955.15,0.00014999,2]
[342014846,1731363079854,-9481.86,0.00014999,2]
[342014847,1731363079864,-1703.05,0.00014999,2]
[342014848,1731363079874,-9481.86,0.00014999,2]
[342014849,1731363079883,-1955.15,0.00014999,2]
[342014850,1731363079892,-9481.86,0.00014999,2]
[342014851,1731363079901,-1703.05,0.00014999,2]
[342014852,1731363079911,-9481.86,0.00014999,2]
[342014853,1731363079920,-1955.15,0.00014999,2]
[342014854,1731363079930,-1703.05,0.00014999,2]
[342014855,1731363079940,-9481.86,0.00014999,2]
[342014856,1731363079949,-1955.15,0.00014999,2]
[342014857,1731363079960,-1703.05,0.00014999,2]
[342014858,1731363079970,-1955.15,0.00014999,2]
[342014859,1731363079980,-9481.86,0.00014999,2]
[342014860,1731363079989,-1703.05,0.00014999,2]
[342014861,1731363079999,-1955.3635267,0.00014999,2]
[342014862,1731363080008,-1703.05,0.00014999,2]
[342014863,1731363080018,-9482.05264951,0.00014999,2]
[342014864,1731363080028,-1703.05,0.00014999,2]
[342014865,1731363080038,-1703.05,0.00014999,2]
[342014866,1731363080047,-500.0,0.00014999,2]
[342014867,1731363080057,-1703.05,0.00014999,2]
[342014868,1731363080066,-500.0,0.00014999,2]
[342014869,1731363080075,-1703.05,0.00014999,2]
[342014870,1731363080085,-500.0,0.00014999,2]
[342014871,1731363080093,-1703.05,0.00014999,2]
[342014872,1731363080103,-500.0,0.00014999,2]
[342014873,1731363080113,-1703.05,0.00014999,2]
[342014874,1731363080122,-500.0,0.00014999,2]
[342014875,1731363080132,-1703.05,0.00014999,2]
[342014876,1731363080141,-500.0,0.00014999,2]
[342014877,1731363080151,-1703.05,0.00014999,2]
[342014878,1731363080161,-500.0,0.00014999,2]
[342014879,1731363080171,-1703.05,0.00014999,2]
[342014880,1731363080180,-598.412987,0.00014999,2]
[342014881,1731363080190,-1703.05,0.00014999,2]
[342014882,1731363080199,-1703.05,0.00014999,2]
[342014883,1731363080211,-1703.05,0.00014999,2]
[342014884,1731363080220,-1703.05,0.00014999,2]
[342014885,1731363080230,-500.0,0.00014999,2]
[342014886,1731363080239,-1703.05,0.00014999,2]
[342014887,1731363080249,-500.0,0.00014999,2]
[342014888,1731363080258,-199.44,0.00014999,2]
[342014889,1731363080268,-1703.05,0.00014999,2]
[342014890,1731363080277,-500.0,0.00014999,2]
[342014891,1731363080286,-1703.20323693,0.00014999,2]
[342014892,1731363080295,-500.0,0.00014999,2]
[342014893,1731363080305,-500.0,0.00014999,2]
[342014894,1731363080314,-500.0,0.00014999,2]
[342014895,1731363080323,-500.0,0.00014999,2]
[342014896,1731363080333,-188.96,0.00014999,2]
[342014897,1731363080342,-535.23262932,0.00014999,2]
[342014898,1731363080351,-2329.45,0.00014999,2]
[342014899,1731363080361,-2329.45,0.00014999,2]
[342014900,1731363080370,-2329.45,0.00014999,2]
[342014901,1731363080380,-1221.42,0.00014999,2]
[342014902,1731363080389,-2329.45,0.00014999,2]
[342014903,1731363080398,-1221.42,0.00014999,2]
[342014904,1731363080408,-1221.42,0.00014999,2]
[342014905,1731363080418,-1221.42,0.00014999,2]
[342014906,1731363080430,-2329.45,0.00014999,2]
[342014907,1731363080439,-1221.42,0.00014999,2]
[342014908,1731363080448,-2329.45,0.00014999,2]
[342014909,1731363080461,-1221.42,0.00014999,2]
[342014910,1731363080606,-2329.45,0.00014999,2]
[342014911,1731363080615,-2329.45,0.00014999,2]
[342014912,1731363080624,-1221.42,0.00014999,2]
[342014913,1731363080633,-2329.45,0.00014999,2]
[342014914,1731363080642,-1221.42,0.00014999,2]
[342014915,1731363080652,-2329.45,0.00014999,2]
[342014916,1731363080661,-502373.93575652,0.00015,2]
[342014917,1731363080670,-9999.97600921,0.00015,2]
[342014918,1731363080680,-437846.42382373,0.00015,2]
[342014919,1731363080689,-5747198.47497224,0.00015,2]
[342014920,1731363080699,-2017607.74709015,0.00015,2]
[342014921,1731363080708,-3663757.18588182,0.00015,2]
[342014922,1731363080720,-4707175.97643472,0.00015,2]
[342014923,1731363080729,-5878718.34806666,0.00015,2]
[342014924,1731363080738,-10686681.82710492,0.00015,2]
[342014925,1731363080748,-7081276.41587188,0.00015,2]
[342014926,1731363080757,-1945.68574,0.00015,2]
[342014927,1731363080766,-7574422.40613891,0.00015,2]
[342014928,1731363080776,-2525377.01793942,0.00015,2]
[342014929,1731363080785,-2260118.93236316,0.00015,2]
[342014930,1731363080795,-1298798.15098789,0.00015,2]
[342014931,1731363080804,-1797831.24424919,0.00015,2]
[342014932,1731363080814,-3368298.8036239,0.00015,2]
[342014933,1731363080823,-1413048.21913962,0.00015,2]
[342014934,1731363080833,-308491.87610419,0.00015,2]
[342014935,1731363081327,-2912446.07525917,0.00015,2]
[342014936,1731363081336,-3704668.8615747,0.00015,2]
[342014937,1731363081346,-3408052.31094021,0.00015,2]
[342014938,1731363081355,-744126.12607808,0.00015,2]
[342014939,1731363081365,-500.0,0.00015,3]
[342014940,1731363081374,-536436.17420924,0.00015,2]
[342014941,1731363083555,500.0,0.00025,120]
[342014942,1731363112758,500.0,0.00025,120]
[342014943,1731363135339,500.0,0.00025,120]
[342014944,1731363153058,496.89,0.00025,120]
[342014954,1731363667464,500.47,0.00012036,2]
[342014955,1731363703069,220.23,0.00012039,2]
[342014956,1731363725303,1003.36,0.00010125,2]
[342014958,1731363781704,173.17,0.00012034,2]
[342014959,1731363809027,516.71,0.00011963,2]
[342014961,1731363907418,1620.37671179,0.00012288,2]
[342014962,1731363920575,300.0,9e-05,2]
[342014963,1731363928451,250.0,0.00011961,2]
[342014964,1731363942139,-1896.61,0.00012352,2]
[342014965,1731363942162,-1003.36,0.00012389,2]
[342014966,1731363942183,-200.0,0.00012419,2]
[342014967,1731363942202,-641.1495,0.00012499,2]
[342014968,1731363942222,-2812.61,0.00012514,2]
[342014969,1731363942243,-7274.23986966,0.00012515,2]
[342014970,1731363942264,-1428.64,0.00012526,2]
[342014971,1731363942286,-516.71,0.00012562,2]
[342014972,1731363942306,-1196.535,0.00012599,2]
[342014973,1731363942325,-198.4278,0.00012599,2]
[342014974,1731363942345,-1000.0,0.00012599,2]
[342014975,1731363942366,-2500.0,0.00012599,2]
[342014976,1731363942390,-3673.09230836,0.00012599,2]
[342014977,1731363942412,-650.03380618,0.00012599,2]
[342014978,1731363942433,-150.0,0.00012686,2]
[342014979,1731363942454,-23900.0,0.00012687,2]
[342014980,1731363942474,-5894.4327757,0.00012689,2]
[342014981,1731363942494,-500.0,0.00012698,2]
[342014982,1731363942514,-160.42654901,0.00012698,2]
[342014983,1731363942535,-675.73,0.00012699,2]
[342014984,1731363942556,-150.99,0.00012699,2]
[342014985,1731363942577,-381.2359,0.00012699,2]
[342014986,1731363942598,-26244.67451055,0.00012699,2]
[342014987,1731363955883,750.0,6.94e-05,2]
[342014990,1731364030574,-197.74,0.00012329,2]
[342014991,1731364030597,-3309.86,0.00012466,2]
[342014992,1731364030619,-300.0,0.00012598,2]
[342014993,1731364030641,-2361.07446491,0.00012599,2]
[342014994,1731364030967,220.38,0.00012241,2]
[342015002,1731364160298,52735.20302597,0.00012,2]
[342015004,1731364169031,475.55,0.00012265,2]
[342015005,1731364172121,-2747.03,0.00012319,2]
[342015006,1731364172142,-1000.0,0.00012451,2]
[342015007,1731364172163,-959.53,0.00012504,2]
[342015008,1731364172184,-1804.1268,0.00012599,2]
[342015009,1731364172205,-568.77958046,0.00012599,2]
[342015010,1731364172225,-926.87785102,0.0001261,2]
[342015011,1731364172247,-4213.20892187,0.00012689,2]
[342015012,1731364172268,-150.0,0.00012698,2]
[342015013,1731364172291,-300.0,0.00012698,2]
[342015014,1731364172516,-102556.08588945,0.00012699,2]
[342015015,1731364172539,-1000.0,0.00012699,2]
[342015016,1731364172563,-10416.3995572,0.00012699,2]
[342015020,1731364230614,2956.34,0.00012266,2]
[342015028,1731364232314,-3950.15,0.00012399,2]
[342015031,1731364232323,-3819.56854959,0.00012599,2]
[342015033,1731364232332,-300.0,0.00012698,2]
[342015035,1731364232341,-234583.6004428,0.00012699,2]
[342015037,1731364232350,-786.2575,0.00012699,2]
[342015039,1731364232359,-150.0,0.00012699,2]
[342015041,1731364232368,-150.0,0.00012699,2]
[342015042,1731364232376,-3819.56854959,0.00012855,2]
[342015043,1731364232385,-158.77,0.00012859,2]
[342015044,1731364232394,-158.77,0.00012884,2]
[342015045,1731364232403,-1382.34,0.00012884,2]
[342015046,1731364232412,-491.86427854,0.000129,2]
[342015047,1731364232421,-158.77,0.0001291,2]
[342015048,1731364232430,-568.77958039,0.00012928,2]
[342015049,1731364232440,-812.06,0.00012928,2]
[342015050,1731364232449,-250.0,0.00012928,2]
[342015051,1731364232458,-158.77,0.00012936,2]
[342015052,1731364232468,-1269.6,0.00012961,2]
[342015053,1731364232477,-3628.5,0.00012961,2]
[342015054,1731364232486,-158.77,0.00012961,2]
[342015055,1731364232496,-158.77,0.00012987,2]
[342015056,1731364232505,-1977.12156157,0.00012996,2]
[342015057,1731364232514,-78961.77597306,0.00013,2]
[342015058,1731364232525,-2575.9712583,0.00013,2]
[342015059,1731364232536,-5202.0,0.00013,2]
[342015060,1731364232553,-87518.81840415,0.00013,2]
[342015061,1731364232564,-100338.91170614,0.00013,2]
[342015062,1731364235784,-406.46096392,0.00013,2]
[342015063,1731364235796,-369.0,0.00013,2]
[342015064,1731364235830,-866.43011656,0.00013,2]
[342015065,1731364235840,-1221.78822509,0.00013,2]
[342015066,1731364235851,-17373.5,0.00013,2]
[342015067,1731364235863,-330578.89235069,0.00013,2]
[342015068,1731364235980,-654.08393192,0.00013,2]
[342015069,1731364235992,-351.899999,0.00013,2]
[342015070,1731364236025,-1800.0,0.00013,2]
[342015071,1731364236036,-259.89494027,0.00013,2]
[342015072,1731364236047,-2299.76847704,0.00013,2]
[342015073,1731364236058,-740.34978784,0.00013,2]
[342015074,1731364236070,-36084.22888768,0.00013,2]
[342015098,1731364238394,-3295.90000001,0.00013,2]
[342015100,1731364238600,-88136.00810678,0.00013,2]
[342015101,1731364238609,-601.14163466,0.00013,2]
[342015102,1731364238619,-520.39,0.00013001,2]
[342015103,1731364238628,-5084.54073236,0.0001305,2]
[342015104,1731364238637,-3819.56854959,0.0001311,2]
[342015105,1731364238646,-516.71,0.0001316,2]
[342015106,1731364238655,-568.77958039,0.00013256,2]
[342015107,1731364238664,-3819.56854959,0.00013366,2]
[342015108,1731364238673,-36235.77147396,0.0001338,2]
[342015109,1731364238682,-500.47,0.0001354,2]
[342015110,1731364238692,-568.77958039,0.00013585,2]
[342015111,1731364238706,-12210.6993,0.00013598,2]
[342015112,1731364238715,-573.8441,0.00013598,2]
[342015113,1731364238724,-4107.1976,0.00013598,2]
[342015114,1731364238733,-3819.56854959,0.00013622,2]
[342015115,1731364238743,-500.0,0.00013673,2]
[342015116,1731364238751,-1368.39617934,0.00013697,2]
[342015117,1731364238760,-500.0,0.00013697,2]
[342015118,1731364238769,-500.0,0.00013697,2]
[342015119,1731364238778,-500.0,0.00013697,2]
[342015120,1731364238787,-184.41019632,0.00013697,2]
[342015121,1731364238798,-341.0627155,0.00013697,2]
[342015122,1731364238807,-500.0,0.00013697,2]
[342015123,1731364238817,-500.0,0.00013697,2]
[342015124,1731364238829,-500.0,0.00013697,2]
[342015125,1731364238838,-500.0,0.00013697,2]
[342015126,1731364238847,-48.38944554,0.00013698,2]
[342015127,1731364238858,-451.61055446,0.00013698,2]
[342015128,1731364238869,-269.0123637,0.00013698,2]
[342015129,1731364238883,-230.9876363,0.00013698,2]
[342015130,1731364238892,-507.65704508,0.00013698,2]
[342015132,1731364238903,-504.46481121,0.00013698,2]
[342015133,1731364238912,-500.0,0.00013698,2]
[342015135,1731364238921,-500.0,0.00013698,2]
[342015136,1731364238931,-495.54308098,0.00013698,2]
[342015137,1731364238941,-500.0,0.00013698,2]
[342015138,1731364238953,-500.0,0.00013698,2]
[342015139,1731364238963,-500.0,0.00013698,2]
[342015140,1731364238973,-500.0,0.00013698,2]
[342015141,1731364238983,-500.0,0.00013698,2]
[342015142,1731364238994,-500.0,0.00013698,2]
[342015143,1731364239003,-500.0,0.00013698,2]
[342015144,1731364239012,-374.12818451,0.00013698,2]
[342015145,1731364239022,-500.0,0.00013698,2]
[342015146,1731364239031,-500.0,0.00013698,2]
[342015147,1731364239041,-500.0,0.00013698,2]
[342015148,1731364239050,-500.0,0.00013698,2]
[342015149,1731364239059,-250.07736165,0.00013698,2]
[342015150,1731364239068,-500.0,0.00013698,2]
[342015151,1731364239077,-312.27116317,0.00013698,2]
[342015152,1731364239086,-500.0,0.00013698,2]
[342015153,1731364239095,-500.0,0.00013698,2]
[342015154,1731364239105,-500.0,0.00013698,2]
[342015155,1731364239114,-500.0,0.00013698,2]
[342015156,1731364239123,-500.0,0.00013698,2]
[342015157,1731364239132,-500.0,0.00013698,2]
[342015158,1731364239142,-500.0,0.00013698,2]
[342015159,1731364239151,-500.0,0.00013698,2]
[342015160,1731364239159,-538.89933404,0.00013698,2]
[342015161,1731364239168,-500.0,0.00013698,2]
[342015162,1731364239177,-500.0,0.00013698,2]
[342015163,1731364239186,-598.91067867,0.00013698,2]
[342015164,1731364239198,-502.12466488,0.00013698,2]
[342015165,1731364239207,-500.0,0.00013698,2]
[342015166,1731364239216,-510.52898303,0.00013698,2]
[342015167,1731364239225,-500.0,0.00013698,2]
[342015168,1731364239234,-500.0,0.00013698,2]
[342015169,1731364239243,-406.55289051,0.00013698,2]
[342015170,1731364239253,-500.8450539,0.00013698,2]
[342015171,1731364239262,-500.0,0.00013698,2]
[342015172,1731364239271,-500.0,0.00013698,2]
[342015173,1731364239280,-500.0,0.00013698,2]
[342015174,1731364239289,-503.20749817,0.00013698,2]
[342015175,1731364239298,-500.0,0.00013698,2]
[342015176,1731364239307,-1014.15,0.00013698,2]
[342015177,1731364239317,-500.0,0.00013698,2]
[342015178,1731364239327,-196.07800113,0.00013698,2]
[342015179,1731364239336,-500.0,0.00013698,2]
[342015180,1731364239345,-500.0,0.00013698,2]
[342015181,1731364239354,-500.0,0.00013698,2]
[342015182,1731364239363,-500.0,0.00013698,2]
[342015183,1731364239372,-500.0,0.00013698,2]
[342015184,1731364239381,-500.0,0.00013698,2]
[342015185,1731364239391,-500.0,0.00013698,2]
[342015186,1731364239400,-389.97,0.00013698,2]
[342015187,1731364239409,-500.0,0.00013698,2]
[342015188,1731364239418,-500.0,0.00013698,2]
[342015189,1731364239428,-500.0,0.00013698,2]
[342015190,1731364239437,-500.0,0.00013698,2]
[342015191,1731364239450,-500.0,0.00013698,2]
[342015192,1731364239459,-500.0,0.00013698,2]
[342015193,1731364239469,-500.0,0.00013698,2]
[342015194,1731364239478,-500.0,0.00013698,2]
[342015195,1731364239488,-500.0,0.00013698,2]
[342015196,1731364239497,-500.0,0.00013698,2]
[342015197,1731364239507,-500.0,0.00013698,2]
[342015198,1731364239516,-500.0,0.00013698,2]
[342015199,1731364239526,-500.0,0.00013698,2]
[342015200,1731364239536,-500.0,0.00013698,2]
[342015201,1731364239546,-500.0,0.00013698,2]
[342015202,1731364239556,-500.0,0.00013698,2]
[342015203,1731364239565,-500.0,0.00013698,2]
[342015204,1731364239574,-500.0,0.00013698,2]
[342015205,1731364239583,-500.0,0.00013698,2]
[342015206,1731364239592,-502.18299132,0.00013698,2]
[342015207,1731364239601,-500.0,0.00013698,2]
[342015208,1731364239610,-500.0,0.00013698,2]
[342015209,1731364239619,-500.0,0.00013698,2]
[342015210,1731364239628,-500.0,0.00013698,2]
[342015211,1731364239637,-500.0,0.00013698,2]
[342015212,1731364239646,-500.0,0.00013698,2]
[342015213,1731364239655,-500.0,0.00013698,2]
[342015214,1731364239664,-500.0,0.00013698,2]
[342015215,1731364239672,-500.0,0.00013698,2]